[Event "Early-Titled-Tuesday-Blitz-February-20-2024"]
[Site "Chess.com"]
[Date "2024.02.20"]
[Round "5"]
[White "Eagle_2019"]
[Black "mishanick"]
[Result "1-0"]
[WhiteElo "2888"]
[BlackElo "3042"]
[TimeControl "180+1"]
[EndTime "8:56:50 PST"]
[Termination "Eagle_2019 won by checkmate"]

1. c4 {[%clk 0:03:00.9]} 1... e6 {[%clk 0:03:00]} 2. Nc3 {[%clk 0:02:58.5]} 2...
d5 {[%clk 0:03:00.6]} 3. d4 {[%clk 0:02:58.5]} 3... Nf6 {[%clk 0:03:00.2]} 4.
Nf3 {[%clk 0:02:58.2]} 4... Nbd7 {[%clk 0:02:58.9]} 5. cxd5 {[%clk 0:02:55.4]}
5... exd5 {[%clk 0:02:59.8]} 6. Bf4 {[%clk 0:02:55.3]} 6... c6 {[%clk
0:02:57.6]} 7. Qc2 {[%clk 0:02:55.4]} 7... Nh5 {[%clk 0:02:54.7]} 8. Bd2 {[%clk
0:02:54.9]} 8... Be7 {[%clk 0:02:49.8]} 9. e3 {[%clk 0:02:49.7]} 9... O-O {[%clk
0:02:38.8]} 10. Bd3 {[%clk 0:02:49.5]} 10... g6 {[%clk 0:02:39.4]} 11. O-O
{[%clk 0:02:48.5]} 11... Re8 {[%clk 0:02:36.9]} 12. Rab1 {[%clk 0:02:47.6]}
12... a5 {[%clk 0:02:36.1]} 13. a3 {[%clk 0:02:47.5]} 13... Bd6 {[%clk
0:02:36.4]} 14. b4 {[%clk 0:02:46.3]} 14... axb4 {[%clk 0:02:36.5]} 15. axb4
{[%clk 0:02:47.2]} 15... Ndf6 {[%clk 0:02:33.1]} 16. b5 {[%clk 0:02:44]} 16...
Bg4 {[%clk 0:02:33.4]} 17. Ne5 {[%clk 0:02:34.2]} 17... Bxe5 {[%clk 0:02:28.2]}
18. dxe5 {[%clk 0:02:33.6]} 18... Rxe5 {[%clk 0:02:28.7]} 19. bxc6 {[%clk
0:02:33]} 19... bxc6 {[%clk 0:02:28.8]} 20. Na4 {[%clk 0:02:31.5]} 20... Rc8
{[%clk 0:01:51.3]} 21. Bc3 {[%clk 0:02:16.7]} 21... Re8 {[%clk 0:01:47.4]} 22.
Bd4 {[%clk 0:02:11]} 22... Ne4 {[%clk 0:01:44.3]} 23. f3 {[%clk 0:02:07.4]}
23... c5 {[%clk 0:01:29]} 24. Ba1 {[%clk 0:02:05.6]} 24... Qg5 {[%clk
0:01:06.9]} 25. fxe4 {[%clk 0:01:55.7]} 25... Qxe3+ {[%clk 0:01:00.8]} 26. Qf2
{[%clk 0:01:46.9]} 26... Qxf2+ {[%clk 0:00:56.2]} 27. Rxf2 {[%clk 0:01:47.8]}
27... dxe4 {[%clk 0:00:55.7]} 28. Bc4 {[%clk 0:01:47]} 28... Be6 {[%clk
0:00:53.8]} 29. Bxe6 {[%clk 0:01:33.4]} 29... Rxe6 {[%clk 0:00:54.7]} 30. Nxc5
{[%clk 0:01:24.7]} 30... e3 {[%clk 0:00:55.3]} 31. Rf3 {[%clk 0:01:18]} 31...
Re7 {[%clk 0:00:28.2]} 32. Nd3 {[%clk 0:01:13.3]} 32... f5 {[%clk 0:00:19.8]}
33. Re1 {[%clk 0:01:09.8]} 33... Rd8 {[%clk 0:00:19.8]} 34. Rfxe3 {[%clk
0:01:04.2]} 34... Rxe3 {[%clk 0:00:17.4]} 35. Rxe3 {[%clk 0:01:05.1]} 35... Rb8
{[%clk 0:00:15.7]} 36. Re1 {[%clk 0:00:59.2]} 36... Kf7 {[%clk 0:00:13.2]} 37.
Ne5+ {[%clk 0:00:58.6]} 37... Kg8 {[%clk 0:00:13.7]} 38. Nd7 {[%clk 0:00:57.8]}
38... Rb7 {[%clk 0:00:07.1]} 39. Nf6+ {[%clk 0:00:56.2]} 39... Nxf6 {[%clk
0:00:07.5]} 40. Bxf6 {[%clk 0:00:57.1]} 40... Kf7 {[%clk 0:00:07.6]} 41. Bg5
{[%clk 0:00:55.4]} 41... Rd7 {[%clk 0:00:07.4]} 42. h3 {[%clk 0:00:55.1]} 42...
Rb7 {[%clk 0:00:07.5]} 43. Kh2 {[%clk 0:00:55.1]} 43... Rd7 {[%clk 0:00:07.8]}
44. Kg3 {[%clk 0:00:53.7]} 44... Rd3+ {[%clk 0:00:07.9]} 45. Re3 {[%clk
0:00:53.3]} 45... Rd7 {[%clk 0:00:07.8]} 46. Kf3 {[%clk 0:00:53.1]} 46... Rb7
{[%clk 0:00:07.7]} 47. Rd3 {[%clk 0:00:51.2]} 47... Kg7 {[%clk 0:00:06.6]} 48.
Bf4 {[%clk 0:00:50.7]} 48... Kf6 {[%clk 0:00:03.5]} 49. Bd2 {[%clk 0:00:48.2]}
49... Kg7 {[%clk 0:00:02.2]} 50. Bc3+ {[%clk 0:00:48.3]} 50... Kh6 {[%clk
0:00:02.7]} 51. Bf6 {[%clk 0:00:45.6]} 51... Rf7 {[%clk 0:00:01.4]} 52. Rd6
{[%clk 0:00:44.8]} 52... Rb7 {[%clk 0:00:01.7]} 53. Rd3 {[%clk 0:00:42.6]} 53...
Kh5 {[%clk 0:00:01.6]} 54. g4+ {[%clk 0:00:42.2]} 54... Kh6 {[%clk 0:00:02]} 55.
gxf5 {[%clk 0:00:40.6]} 55... gxf5 {[%clk 0:00:02.2]} 56. Kf4 {[%clk 0:00:39.2]}
56... Kg6 {[%clk 0:00:02.4]} 57. Bd4 {[%clk 0:00:39.2]} 57... Rd7 {[%clk
0:00:01.9]} 58. Rg3+ {[%clk 0:00:37.8]} 58... Kh5 {[%clk 0:00:02.3]} 59. Bf6
{[%clk 0:00:36.1]} 59... Rd5 {[%clk 0:00:02.7]} 60. Rg5+ {[%clk 0:00:34.7]}
60... Kh6 {[%clk 0:00:03.3]} 61. Bg7# {[%clk 0:00:34.9]} 1-0

[Event "Early-Titled-Tuesday-Blitz-February-20-2024"]
[Site "Chess.com"]
[Date "2024.02.20"]
[Round "5"]
[White "MaxLeto"]
[Black "picturesquecheck"]
[Result "0-1"]
[WhiteElo "2557"]
[BlackElo "2441"]
[TimeControl "180+1"]
[EndTime "8:56:52 PST"]
[Termination "picturesquecheck won by checkmate"]

1. g4 {[%clk 0:02:55.5]} 1... d5 {[%clk 0:02:57.7]} 2. Bg2 {[%clk 0:02:55.3]}
2... c6 {[%clk 0:02:47.3]} 3. h3 {[%clk 0:02:52.1]} 3... e5 {[%clk 0:02:45.6]}
4. d4 {[%clk 0:02:52.2]} 4... e4 {[%clk 0:02:45]} 5. c4 {[%clk 0:02:52.1]} 5...
Bb4+ {[%clk 0:02:42.7]} 6. Nc3 {[%clk 0:02:51.8]} 6... Ne7 {[%clk 0:02:43]} 7.
Qb3 {[%clk 0:02:51.2]} 7... Bxc3+ {[%clk 0:02:41.1]} 8. Qxc3 {[%clk 0:02:48.3]}
8... O-O {[%clk 0:02:41.7]} 9. Bg5 {[%clk 0:02:43.9]} 9... f6 {[%clk 0:02:35.1]}
10. Bf4 {[%clk 0:02:30.3]} 10... Kh8 {[%clk 0:02:35]} 11. e3 {[%clk 0:02:24.1]}
11... Be6 {[%clk 0:02:32.2]} 12. Ne2 {[%clk 0:02:23.2]} 12... Nd7 {[%clk
0:02:31.1]} 13. Qb3 {[%clk 0:01:39]} 13... b6 {[%clk 0:02:07.2]} 14. Bd6 {[%clk
0:01:37.8]} 14... Re8 {[%clk 0:01:59.7]} 15. Nf4 {[%clk 0:01:33.3]} 15... Bf7
{[%clk 0:01:55.9]} 16. Bxe7 {[%clk 0:01:13.6]} 16... Qxe7 {[%clk 0:01:52.9]} 17.
cxd5 {[%clk 0:01:09.8]} 17... cxd5 {[%clk 0:01:51]} 18. O-O-O {[%clk 0:00:54.8]}
18... Qd6 {[%clk 0:01:38.2]} 19. Kb1 {[%clk 0:00:49.6]} 19... a5 {[%clk
0:01:35.6]} 20. Rc1 {[%clk 0:00:45.2]} 20... Rec8 {[%clk 0:01:32.2]} 21. a3
{[%clk 0:00:23.8]} 21... Nf8 {[%clk 0:00:36.5]} 22. Bxe4 {[%clk 0:00:18.1]}
22... g5 {[%clk 0:00:31.5]} 23. Ne2 {[%clk 0:00:04.2]} 23... a4 {[%clk
0:00:31.5]} 24. Qa2 {[%clk 0:00:04.2]} 24... b5 {[%clk 0:00:25]} 25. Bf5 {[%clk
0:00:04.1]} 25... Rc4 {[%clk 0:00:23.5]} 26. Ng3 {[%clk 0:00:03.8]} 26... b4
{[%clk 0:00:22.6]} 27. Bd3 {[%clk 0:00:03]} 27... b3 {[%clk 0:00:21.2]} 28. Qa1
{[%clk 0:00:03.5]} 28... Rxc1+ {[%clk 0:00:18]} 29. Rxc1 {[%clk 0:00:04.4]}
29... Be6 {[%clk 0:00:14.2]} 30. Rc3 {[%clk 0:00:04.5]} 30... Rc8 {[%clk
0:00:13.6]} 31. Kc1 {[%clk 0:00:04.7]} 31... Rxc3+ {[%clk 0:00:11.3]} 32. bxc3
{[%clk 0:00:05.6]} 32... Ng6 {[%clk 0:00:11.3]} 33. Kb2 {[%clk 0:00:05.9]} 33...
Ne7 {[%clk 0:00:10.8]} 34. Qc1 {[%clk 0:00:05.4]} 34... Nc6 {[%clk 0:00:10.7]}
35. c4 {[%clk 0:00:04.2]} 35... dxc4 {[%clk 0:00:08.3]} 36. Bxc4 {[%clk
0:00:05.1]} 36... Na5 {[%clk 0:00:08.4]} 37. Bxe6 {[%clk 0:00:04.7]} 37... Qxe6
{[%clk 0:00:09.3]} 38. Qc5 {[%clk 0:00:04.2]} 38... Nc4+ {[%clk 0:00:07.7]} 39.
Kc3 {[%clk 0:00:03.8]} 39... Nd6 {[%clk 0:00:07.7]} 40. Nf5 {[%clk 0:00:02.2]}
40... Ne4+ {[%clk 0:00:07.3]} 41. Kb2 {[%clk 0:00:02.7]} 41... Nxc5 {[%clk
0:00:08.2]} 42. dxc5 {[%clk 0:00:03.2]} 42... Qe5+ {[%clk 0:00:08.7]} 43. Nd4
{[%clk 0:00:03.6]} 43... Qxc5 {[%clk 0:00:08.2]} 44. h4 {[%clk 0:00:03.7]} 44...
gxh4 {[%clk 0:00:08]} 45. g5 {[%clk 0:00:02.3]} 45... fxg5 {[%clk 0:00:07.8]}
46. f4 {[%clk 0:00:02.8]} 46... h3 {[%clk 0:00:08.1]} 47. fxg5 {[%clk
0:00:03.1]} 47... h2 {[%clk 0:00:08.6]} 48. g6 {[%clk 0:00:04]} 48... h1=Q
{[%clk 0:00:08.8]} 49. g7+ {[%clk 0:00:04.9]} 49... Kxg7 {[%clk 0:00:09.2]} 50.
Nf5+ {[%clk 0:00:04.7]} 50... Kg6 {[%clk 0:00:08.9]} 51. Nh4+ {[%clk 0:00:03.7]}
51... Qxh4 {[%clk 0:00:07.5]} 52. e4 {[%clk 0:00:04.4]} 52... Qc2+ {[%clk
0:00:07.4]} 53. Ka1 {[%clk 0:00:04.4]} 53... Qe1# {[%clk 0:00:08.3]} 0-1

[Event "Early-Titled-Tuesday-Blitz-February-20-2024"]
[Site "Chess.com"]
[Date "2024.02.20"]
[Round "5"]
[White "Zhigalko_Sergei"]
[Black "Mops_2004"]
[Result "1-0"]
[WhiteElo "2934"]
[BlackElo "2721"]
[TimeControl "180+1"]
[EndTime "8:56:53 PST"]
[Termination "Zhigalko_Sergei won on time"]

1. e4 {[%clk 0:03:00.9]} 1... c6 {[%clk 0:02:58.7]} 2. d4 {[%clk 0:03:01.1]}
2... d5 {[%clk 0:02:59.2]} 3. e5 {[%clk 0:03:01.5]} 3... Bf5 {[%clk 0:02:59.8]}
4. Nf3 {[%clk 0:03:01]} 4... e6 {[%clk 0:03:00.5]} 5. Be2 {[%clk 0:03:01]} 5...
Nd7 {[%clk 0:03:00.8]} 6. O-O {[%clk 0:03:01.1]} 6... a5 {[%clk 0:03:01.2]} 7.
Nbd2 {[%clk 0:02:55.9]} 7... a4 {[%clk 0:03:01.4]} 8. c4 {[%clk 0:02:54.8]} 8...
h6 {[%clk 0:02:58.8]} 9. a3 {[%clk 0:02:41.5]} 9... Ne7 {[%clk 0:02:56.6]} 10.
Re1 {[%clk 0:02:40.7]} 10... Bg6 {[%clk 0:02:43.6]} 11. Bf1 {[%clk 0:02:34.4]}
11... Nf5 {[%clk 0:02:43.6]} 12. cxd5 {[%clk 0:02:34.6]} 12... cxd5 {[%clk
0:02:42.3]} 13. Bb5 {[%clk 0:02:29.5]} 13... Qa5 {[%clk 0:02:42.2]} 14. Qe2
{[%clk 0:02:29.2]} 14... Ne7 {[%clk 0:02:40.2]} 15. Nb1 {[%clk 0:02:24.5]} 15...
Nc6 {[%clk 0:02:39]} 16. Nc3 {[%clk 0:02:23.8]} 16... Nb6 {[%clk 0:02:39.2]} 17.
Bd2 {[%clk 0:02:15.2]} 17... Qa7 {[%clk 0:02:39.2]} 18. Nh4 {[%clk 0:01:47.9]}
18... Bh7 {[%clk 0:02:38.1]} 19. Rac1 {[%clk 0:01:47.8]} 19... Be7 {[%clk
0:02:36.6]} 20. Qg4 {[%clk 0:01:47.9]} 20... Bxh4 {[%clk 0:02:00.1]} 21. Qxh4
{[%clk 0:01:44.8]} 21... O-O {[%clk 0:02:00]} 22. Re3 {[%clk 0:01:18.8]} 22...
Bg6 {[%clk 0:01:56.2]} 23. Rh3 {[%clk 0:01:14]} 23... h5 {[%clk 0:01:16.4]} 24.
g4 {[%clk 0:00:38.5]} 24... Nc4 {[%clk 0:00:53.7]} 25. Bxc4 {[%clk 0:00:24.8]}
25... dxc4 {[%clk 0:00:54]} 26. Be3 {[%clk 0:00:25.2]} 26... Qb8 {[%clk
0:00:30.3]} 27. gxh5 {[%clk 0:00:24.1]} 27... Bf5 {[%clk 0:00:30.7]} 28. Rg3
{[%clk 0:00:24.4]} 28... Kh7 {[%clk 0:00:30.6]} 29. Kh1 {[%clk 0:00:04]} 29...
Rg8 {[%clk 0:00:29.3]} 30. Rcg1 {[%clk 0:00:03.6]} 30... Qd8 {[%clk 0:00:26.2]}
31. Qf4 {[%clk 0:00:04.1]} 31... Qf8 {[%clk 0:00:20.4]} 32. d5 {[%clk
0:00:04.5]} 32... Na5 {[%clk 0:00:12.8]} 33. d6 {[%clk 0:00:04]} 33... f6 {[%clk
0:00:09.3]} 34. f3 {[%clk 0:00:03]} 34... Qf7 {[%clk 0:00:09.5]} 35. Bd4 {[%clk
0:00:02.7]} 35... Qxh5 {[%clk 0:00:08.5]} 36. exf6 {[%clk 0:00:02.7]} 36... gxf6
{[%clk 0:00:07.3]} 37. Bxf6 {[%clk 0:00:03.6]} 37... Rxg3 {[%clk 0:00:05.1]} 38.
Rxg3 {[%clk 0:00:04.5]} 38... Rg8 {[%clk 0:00:05.3]} 39. Rxg8 {[%clk 0:00:03.8]}
39... Kxg8 {[%clk 0:00:06.2]} 40. Qg3+ {[%clk 0:00:04.2]} 40... Bg6 {[%clk
0:00:03.6]} 41. d7 {[%clk 0:00:03.9]} 41... Nc6 {[%clk 0:00:04.3]} 42. d8=Q+
{[%clk 0:00:04]} 42... Nxd8 {[%clk 0:00:04.6]} 43. Bxd8 {[%clk 0:00:04.9]} 43...
Qf5 {[%clk 0:00:04.9]} 44. Ne4 {[%clk 0:00:03]} 44... Kf8 {[%clk 0:00:02.4]} 45.
Bc7 {[%clk 0:00:02.8]} 45... Qd5 {[%clk 0:00:01.8]} 46. Qxg6 {[%clk 0:00:02.7]}
46... Qd1+ {[%clk 0:00:01.6]} 47. Kg2 {[%clk 0:00:03.1]} 47... Qc2+ {[%clk
0:00:02]} 48. Kg3 {[%clk 0:00:03.1]} 48... Qd1 {[%clk 0:00:02.2]} 49. Bd6+
{[%clk 0:00:03.4]} 1-0

[Event "Early-Titled-Tuesday-Blitz-February-20-2024"]
[Site "Chess.com"]
[Date "2024.02.20"]
[Round "5"]
[White "SaiAgni_98"]
[Black "ExchangeAB"]
[Result "1-0"]
[WhiteElo "2574"]
[BlackElo "2435"]
[TimeControl "180+1"]
[EndTime "8:56:58 PST"]
[Termination "SaiAgni_98 won by checkmate"]

1. e4 {[%clk 0:03:00.9]} 1... c6 {[%clk 0:03:00.3]} 2. Nf3 {[%clk 0:02:59.6]}
2... d5 {[%clk 0:03:01.2]} 3. Nc3 {[%clk 0:02:58.4]} 3... Bg4 {[%clk 0:03:01.2]}
4. h3 {[%clk 0:02:56.5]} 4... Bxf3 {[%clk 0:03:01.6]} 5. Qxf3 {[%clk 0:02:57.4]}
5... e6 {[%clk 0:03:02]} 6. d3 {[%clk 0:02:53.6]} 6... Nd7 {[%clk 0:03:02.4]} 7.
g3 {[%clk 0:02:53.8]} 7... Bc5 {[%clk 0:03:00.5]} 8. Bg2 {[%clk 0:02:53]} 8...
Ne7 {[%clk 0:02:59.9]} 9. O-O {[%clk 0:02:52.1]} 9... a5 {[%clk 0:02:57.9]} 10.
Kh2 {[%clk 0:02:45]} 10... a4 {[%clk 0:02:56.8]} 11. a3 {[%clk 0:02:44.1]} 11...
Qc7 {[%clk 0:02:50]} 12. Qg4 {[%clk 0:02:31.2]} 12... O-O {[%clk 0:02:44]} 13.
f4 {[%clk 0:02:20.9]} 13... f5 {[%clk 0:02:36.8]} 14. Qe2 {[%clk 0:02:17.6]}
14... b5 {[%clk 0:02:33.9]} 15. e5 {[%clk 0:01:45.4]} 15... Ba7 {[%clk
0:02:25.5]} 16. h4 {[%clk 0:01:40.5]} 16... Rab8 {[%clk 0:02:20.4]} 17. Na2
{[%clk 0:01:39.8]} 17... c5 {[%clk 0:02:19]} 18. Bd2 {[%clk 0:01:38.5]} 18...
Nc6 {[%clk 0:02:17.9]} 19. c3 {[%clk 0:01:35.4]} 19... d4 {[%clk 0:02:15.4]} 20.
Rac1 {[%clk 0:01:30.3]} 20... dxc3 {[%clk 0:02:15.3]} 21. bxc3 {[%clk
0:01:22.4]} 21... Na5 {[%clk 0:02:12]} 22. Be3 {[%clk 0:01:17.6]} 22... Nb3
{[%clk 0:02:11.2]} 23. Rcd1 {[%clk 0:01:17.4]} 23... Nb6 {[%clk 0:02:08.7]} 24.
Nc1 {[%clk 0:01:15.5]} 24... Rbd8 {[%clk 0:02:08.2]} 25. h5 {[%clk 0:01:06.7]}
25... Nxc1 {[%clk 0:02:02.6]} 26. Rxc1 {[%clk 0:01:06.7]} 26... Nd5 {[%clk
0:02:02.4]} 27. Bd2 {[%clk 0:00:57]} 27... c4 {[%clk 0:01:57.6]} 28. d4 {[%clk
0:00:52.4]} 28... h6 {[%clk 0:01:46.9]} 29. Rc2 {[%clk 0:00:50.8]} 29... Ne7
{[%clk 0:01:42.8]} 30. Rb1 {[%clk 0:00:50]} 30... Qd7 {[%clk 0:01:38.6]} 31.
Rcb2 {[%clk 0:00:49.5]} 31... Rb8 {[%clk 0:01:36.6]} 32. Qf3 {[%clk 0:00:50.1]}
32... Nd5 {[%clk 0:01:32.6]} 33. Bh1 {[%clk 0:00:44]} 33... Rb6 {[%clk 0:01:26]}
34. g4 {[%clk 0:00:44.1]} 34... fxg4 {[%clk 0:01:25.6]} 35. Qxg4 {[%clk
0:00:45]} 35... Rbb8 {[%clk 0:01:24.2]} 36. Be4 {[%clk 0:00:45]} 36... Ne7
{[%clk 0:01:13]} 37. Rg1 {[%clk 0:00:40.8]} 37... Nf5 {[%clk 0:01:12.1]} 38. Be1
{[%clk 0:00:33.4]} 38... Kh8 {[%clk 0:00:57.1]} 39. Qg6 {[%clk 0:00:32.4]} 39...
Qf7 {[%clk 0:00:53.8]} 40. Qxf7 {[%clk 0:00:31.7]} 40... Rxf7 {[%clk 0:00:54.7]}
41. Rg6 {[%clk 0:00:32.5]} 41... Ne3 {[%clk 0:00:41.2]} 42. Rxe6 {[%clk
0:00:28.1]} 42... Rxf4 {[%clk 0:00:40.3]} 43. Bg6 {[%clk 0:00:22.8]} 43... Rbf8
{[%clk 0:00:35.6]} 44. Bg3 {[%clk 0:00:22.3]} 44... Nf1+ {[%clk 0:00:35.3]} 45.
Kg2 {[%clk 0:00:22.5]} 45... Nxg3 {[%clk 0:00:35.7]} 46. Kxg3 {[%clk 0:00:23.4]}
46... Rf3+ {[%clk 0:00:35.5]} 47. Kg2 {[%clk 0:00:23.5]} 47... Rxc3 {[%clk
0:00:35.1]} 48. Rd6 {[%clk 0:00:19.1]} 48... Bb8 {[%clk 0:00:29.3]} 49. Rd7
{[%clk 0:00:17]} 49... Rb3 {[%clk 0:00:27.8]} 50. Rf2 {[%clk 0:00:16.8]} 50...
Rc8 {[%clk 0:00:18.5]} 51. Rdf7 {[%clk 0:00:09.9]} 51... Kg8 {[%clk 0:00:16.7]}
52. Be4 {[%clk 0:00:07.3]} 52... Re3 {[%clk 0:00:09.2]} 53. Bd5 {[%clk
0:00:07.5]} 53... Kh8 {[%clk 0:00:07.9]} 54. Rf8+ {[%clk 0:00:07.9]} 54... Rxf8
{[%clk 0:00:07.4]} 55. Rxf8+ {[%clk 0:00:08.8]} 55... Kh7 {[%clk 0:00:08.3]} 56.
Bg8+ {[%clk 0:00:09.7]} 56... Kh8 {[%clk 0:00:08.5]} 57. Bf7+ {[%clk 0:00:10.6]}
57... Kh7 {[%clk 0:00:09.2]} 58. Bg6# {[%clk 0:00:11.5]} 1-0

[Event "Early-Titled-Tuesday-Blitz-February-20-2024"]
[Site "Chess.com"]
[Date "2024.02.20"]
[Round "5"]
[White "LevonAronian"]
[Black "Anton_Demchenko"]
[Result "1-0"]
[WhiteElo "3087"]
[BlackElo "2909"]
[TimeControl "180+1"]
[EndTime "8:56:59 PST"]
[Termination "LevonAronian won on time"]

1. e4 {[%clk 0:02:57.7]} 1... e5 {[%clk 0:03:00.1]} 2. Nf3 {[%clk 0:02:57.4]}
2... Nc6 {[%clk 0:03:00.8]} 3. Bc4 {[%clk 0:02:56.9]} 3... Nf6 {[%clk
0:03:00.8]} 4. d3 {[%clk 0:02:57.1]} 4... h6 {[%clk 0:02:58.1]} 5. O-O {[%clk
0:02:55.8]} 5... d6 {[%clk 0:02:58.8]} 6. Nc3 {[%clk 0:02:52.7]} 6... Be7 {[%clk
0:02:56.1]} 7. d4 {[%clk 0:02:48.1]} 7... Bg4 {[%clk 0:02:51]} 8. dxe5 {[%clk
0:02:44.3]} 8... dxe5 {[%clk 0:02:44.9]} 9. Bb5 {[%clk 0:02:44.1]} 9... Qxd1
{[%clk 0:02:37.6]} 10. Rxd1 {[%clk 0:02:43.5]} 10... Bxf3 {[%clk 0:02:37.5]} 11.
gxf3 {[%clk 0:02:43.5]} 11... O-O {[%clk 0:02:37.3]} 12. Bxc6 {[%clk 0:02:40]}
12... bxc6 {[%clk 0:02:36.9]} 13. Be3 {[%clk 0:02:39.9]} 13... Bd6 {[%clk
0:02:25.9]} 14. Rd3 {[%clk 0:02:33.8]} 14... Nd7 {[%clk 0:02:23]} 15. Na4 {[%clk
0:02:12.5]} 15... f5 {[%clk 0:01:53.6]} 16. Rad1 {[%clk 0:01:47.2]} 16... fxe4
{[%clk 0:01:31.4]} 17. fxe4 {[%clk 0:01:46]} 17... Nf6 {[%clk 0:01:32.2]} 18.
Nc5 {[%clk 0:01:13.2]} 18... Rf7 {[%clk 0:01:26.9]} 19. Rc3 {[%clk 0:00:59.3]}
19... Ng4 {[%clk 0:01:09.4]} 20. Nb7 {[%clk 0:00:54.7]} 20... Nxe3 {[%clk
0:01:04.9]} 21. fxe3 {[%clk 0:00:51.4]} 21... Be7 {[%clk 0:00:52]} 22. Rf1
{[%clk 0:00:32.5]} 22... Rxf1+ {[%clk 0:00:37.7]} 23. Kxf1 {[%clk 0:00:32.1]}
23... Rb8 {[%clk 0:00:38.6]} 24. Rb3 {[%clk 0:00:31.3]} 24... Rf8+ {[%clk
0:00:35.3]} 25. Kg1 {[%clk 0:00:31]} 25... Bg5 {[%clk 0:00:16]} 26. Na5 {[%clk
0:00:30.8]} 26... c5 {[%clk 0:00:09.2]} 27. Nc4 {[%clk 0:00:30.9]} 27... h5
{[%clk 0:00:02.8]} 28. Rd3 {[%clk 0:00:29.4]} 28... g6 {[%clk 0:00:02.5]} 29.
Rd5 {[%clk 0:00:28.6]} 29... Rf7 {[%clk 0:00:02]} 30. Rxe5 {[%clk 0:00:25.9]}
30... Bf6 {[%clk 0:00:02]} 31. Rxc5 {[%clk 0:00:24.1]} 31... g5 {[%clk
0:00:01.7]} 32. Ne5 {[%clk 0:00:20.6]} 32... Re7 {[%clk 0:00:01.6]} 33. Nd3
{[%clk 0:00:20.4]} 33... Rxe4 {[%clk 0:00:01.8]} 34. Rxc7 {[%clk 0:00:19.7]}
34... Rxe3 {[%clk 0:00:01.8]} 35. Kf1 {[%clk 0:00:20]} 35... Rf3+ {[%clk
0:00:01.9]} 36. Kg2 {[%clk 0:00:19.3]} 36... Re3 {[%clk 0:00:02.6]} 37. Rxa7
{[%clk 0:00:17.6]} 37... Re2+ {[%clk 0:00:02.8]} 38. Kh1 {[%clk 0:00:14.9]}
38... Rxc2 {[%clk 0:00:03.7]} 39. Ra6 {[%clk 0:00:14.6]} 39... Kg7 {[%clk
0:00:03.8]} 40. Rd6 {[%clk 0:00:13.7]} 40... Rd2 {[%clk 0:00:03.6]} 41. a4
{[%clk 0:00:13.3]} 41... Bxb2 {[%clk 0:00:03.2]} 42. a5 {[%clk 0:00:12.4]} 42...
Bc3 {[%clk 0:00:02.9]} 43. a6 {[%clk 0:00:12.5]} 43... Ra2 {[%clk 0:00:03.7]}
44. Nc5 {[%clk 0:00:11.8]} 44... Be5 {[%clk 0:00:03.4]} 45. Rd5 {[%clk
0:00:10.5]} 45... Bf4 {[%clk 0:00:02.4]} 46. h4 {[%clk 0:00:08.8]} 46... Kf6
{[%clk 0:00:01.9]} 47. hxg5+ {[%clk 0:00:08.4]} 47... Kg6 {[%clk 0:00:02.3]} 48.
Ne6 {[%clk 0:00:07.1]} 48... Be3 {[%clk 0:00:02]} 49. Re5 {[%clk 0:00:06.6]}
49... Bf2 {[%clk 0:00:01.8]} 50. Nf4+ {[%clk 0:00:06.4]} 50... Kg7 {[%clk
0:00:02.4]} 51. Re7+ {[%clk 0:00:06.2]} 51... Kf8 {[%clk 0:00:02.1]} 52. Re6
{[%clk 0:00:05.8]} 52... h4 {[%clk 0:00:01.7]} 53. g6 {[%clk 0:00:05.1]} 53...
Bg3 {[%clk 0:00:01]} 54. Nh5 {[%clk 0:00:05.5]} 1-0

[Event "Early-Titled-Tuesday-Blitz-February-20-2024"]
[Site "Chess.com"]
[Date "2024.02.20"]
[Round "5"]
[White "stratacticos"]
[Black "ChessFanNM"]
[Result "1-0"]
[WhiteElo "1995"]
[BlackElo "2295"]
[TimeControl "180+1"]
[EndTime "8:56:59 PST"]
[Termination "stratacticos won on time"]

1. e4 {[%clk 0:02:59.9]} 1... e5 {[%clk 0:02:58.4]} 2. Nf3 {[%clk 0:02:58.8]}
2... Nc6 {[%clk 0:02:57.8]} 3. Bc4 {[%clk 0:02:57.9]} 3... Nf6 {[%clk
0:02:57.4]} 4. Ng5 {[%clk 0:02:57.6]} 4... d5 {[%clk 0:02:56.2]} 5. exd5 {[%clk
0:02:57.3]} 5... b5 {[%clk 0:02:56]} 6. Bf1 {[%clk 0:02:52]} 6... h6 {[%clk
0:02:54.5]} 7. Nxf7 {[%clk 0:02:48.1]} 7... Kxf7 {[%clk 0:02:53.7]} 8. dxc6
{[%clk 0:02:47.8]} 8... Bc5 {[%clk 0:02:52.7]} 9. d3 {[%clk 0:02:34.9]} 9... Rf8
{[%clk 0:02:48.6]} 10. Be3 {[%clk 0:02:29.6]} 10... Bxe3 {[%clk 0:02:34]} 11.
fxe3 {[%clk 0:02:28.6]} 11... Kg8 {[%clk 0:02:31.3]} 12. Be2 {[%clk 0:02:26.9]}
12... Nd5 {[%clk 0:02:17.1]} 13. Bf3 {[%clk 0:02:17.7]} 13... Nxe3 {[%clk
0:02:04]} 14. Qe2 {[%clk 0:02:17.3]} 14... Qd4 {[%clk 0:01:32.2]} 15. c3 {[%clk
0:02:15.7]} 15... Qh4+ {[%clk 0:01:29.2]} 16. g3 {[%clk 0:02:11.5]} 16... Qg5
{[%clk 0:01:29.3]} 17. Nd2 {[%clk 0:02:05.1]} 17... Nc2+ {[%clk 0:01:26.7]} 18.
Kf2 {[%clk 0:02:02.8]} 18... Nxa1 {[%clk 0:01:25.3]} 19. Rxa1 {[%clk 0:01:59.9]}
19... Bg4 {[%clk 0:01:23.1]} 20. Kg2 {[%clk 0:01:49.8]} 20... h5 {[%clk
0:01:08.8]} 21. Rf1 {[%clk 0:01:39.7]} 21... Rae8 {[%clk 0:00:58.3]} 22. h3
{[%clk 0:01:29.4]} 22... Bxf3+ {[%clk 0:00:56]} 23. Nxf3 {[%clk 0:01:29]} 23...
Qe7 {[%clk 0:00:48.8]} 24. Re1 {[%clk 0:01:19.6]} 24... Qc5 {[%clk 0:00:34.4]}
25. Qe4 {[%clk 0:01:07.4]} 25... h4 {[%clk 0:00:30.5]} 26. Qxh4 {[%clk 0:00:56]}
26... Qxc6 {[%clk 0:00:24.5]} 27. Re4 {[%clk 0:00:55.4]} 27... Rd8 {[%clk
0:00:19]} 28. Ng5 {[%clk 0:00:51.4]} 28... Qg6 {[%clk 0:00:18.9]} 29. d4 {[%clk
0:00:33.6]} 29... exd4 {[%clk 0:00:17.6]} 30. cxd4 {[%clk 0:00:33.2]} 30... c5
{[%clk 0:00:17]} 31. Qg4 {[%clk 0:00:25.5]} 31... cxd4 {[%clk 0:00:14.1]} 32.
Qe6+ {[%clk 0:00:25.1]} 32... Qxe6 {[%clk 0:00:13.8]} 33. Nxe6 {[%clk
0:00:24.1]} 33... d3 {[%clk 0:00:11.5]} 34. Nxd8 {[%clk 0:00:21.2]} 34... Rxd8
{[%clk 0:00:07.9]} 35. Re1 {[%clk 0:00:22.1]} 35... d2 {[%clk 0:00:07.7]} 36.
Rd1 {[%clk 0:00:22.6]} 36... Rd3 {[%clk 0:00:08.2]} 37. Kf2 {[%clk 0:00:23.5]}
37... Kf7 {[%clk 0:00:08.3]} 38. Ke2 {[%clk 0:00:20]} 38... Rxg3 {[%clk
0:00:08.5]} 39. Rxd2 {[%clk 0:00:20]} 39... Rg2+ {[%clk 0:00:07]} 40. Kd3 {[%clk
0:00:19.2]} 40... Rxd2+ {[%clk 0:00:05.8]} 41. Kxd2 {[%clk 0:00:19.1]} 41... Ke6
{[%clk 0:00:06]} 42. Kc3 {[%clk 0:00:17.5]} 42... Kf5 {[%clk 0:00:04.2]} 43. Kb4
{[%clk 0:00:17]} 43... g5 {[%clk 0:00:04.3]} 44. Kxb5 {[%clk 0:00:16.7]} 44...
Kf4 {[%clk 0:00:04.6]} 45. Ka6 {[%clk 0:00:17.6]} 45... Kg3 {[%clk 0:00:04.8]}
46. b4 {[%clk 0:00:18.5]} 46... Kxh3 {[%clk 0:00:05]} 47. b5 {[%clk 0:00:19.4]}
47... g4 {[%clk 0:00:05.2]} 48. a4 {[%clk 0:00:20.3]} 48... g3 {[%clk
0:00:05.5]} 49. Kxa7 {[%clk 0:00:20.1]} 49... g2 {[%clk 0:00:05.5]} 50. b6
{[%clk 0:00:21]} 50... g1=Q {[%clk 0:00:04.9]} 51. a5 {[%clk 0:00:20.3]} 51...
Qc5 {[%clk 0:00:04.3]} 52. Ka6 {[%clk 0:00:19.2]} 52... Qc6 {[%clk 0:00:03.8]}
53. Ka7 {[%clk 0:00:18.6]} 53... Qc5 {[%clk 0:00:01.9]} 54. Ka6 {[%clk
0:00:18.3]} 1-0